Cogmind - Beta 16.1 @@@ ROGUE MODE // 2026.02.13 @ 21:27:25 Player: Thesoulkiller104 Result: Destroyed by P-60 Hacker with Shock Rifle Performance ------------- Evolutions (3) 1500 Regions Visited (9) 1800 Robots Destroyed (26) 130 Value Destroyed (650) 650 Prototype IDs (14) 280 Alien Tech Used (0) 0 Bonus (382) 382 TOTAL SCORE: 4742 Bonus ------- Follower Combat Kills 82 Met Data Miner 300 Cogmind --------- Core Integrity 0/700 Matter 300/300 Energy 100/100 System Corruption 0% Temperature Cool (0) Movement Core (50) Location -6/Proximity Caves Parts ------- > --- POWER (1) -------- (None) > --- PROPULSION (3) --- (None) > --- UTILITY (7) ------ Improved Signal Interpreter Improved Targeting Computer Improved Targeting Computer Makeshift Hacking Suite > --- WEAPON (2) ------- Dirty Datajack > --- INVENTORY (5) ---- Dirty Datajack (20) Dirty Datajack (20) Dirty Datajack (20) Dirty Datajack (20) Ripper Peak State ------------ > --- POWER ------------ (None) > --- PROPULSION ------- VTOL Module VTOL Module > --- UTILITY ---------- Improved Signal Interpreter Makeshift Salvage Targeting Computer Makeshift Salvage Targeting Computer Makeshift Salvage Targeting Computer Improved Targeting Computer Improved Targeting Computer ECM Suite > --- WEAPON ----------- Dirty Datajack > --- INVENTORY -------- Hardened Medium Armor Plating Dirty Datajack Dirty Datajack Dirty Datajack Dirty Datajack [Rating: 32] Favorites ----------- Power Ion Engine Engine Ion Engine Propulsion Aluminum Leg Treads Medium Treads Leg Aluminum Leg Flight Unit VTOL Module Utility Improved Targeting Computer Device Disposable Heat Sink Storage Small Storage Unit Processor Improved Targeting Computer Hackware Makeshift Hacking Suite Protection Backup Plating I Weapon Light EM Pulse Cannon Energy Gun Improved EM Shotgun Energy Cannon Light EM Pulse Cannon Ballistic Gun Assault Rifle Ballistic Cannon Flak Cannon Special Melee Weapon Dirty Datajack Build | -11 -10 -10 -9 -8 -7 -7 -7 -7 -6 ------- Run | Yrd Mat Min Mat Mat Fac Low Low Dat Pro Slots Evolved 6 | . . . 2 2 2 . . . . Power . | . . . . . . . . . . Propulsion 1 | . . . . 1 . . . . . Utility 5 | . . . 2 1 2 . . . . Weapon . | . . . . . . . . . . Parts Attached 42 | 6 6 . 5 6 1 7 7 . 4 Power 3 | 1 1 . 1 . . . . . . Engine 3 | 1 1 . 1 . . . . . . Core . | . . . . . . . . . . Reactor . | . . . . . . . . . . Propulsion 9 | 2 1 . . . . 2 1 . 3 Treads 2 | . . . . . . . . . 2 Leg 3 | 2 1 . . . . . . . . Wheel . | . . . . . . . . . . Hover . | . . . . . . . . . . Flight 4 | . . . . . . 2 1 . 1 Utility 20 | 1 2 . 3 3 1 3 6 . 1 Device 6 | . 1 . 2 1 . . 2 . . Storage 1 | 1 . . . . . . . . . Processor 8 | . . . 1 1 1 2 3 . . Hackware 2 | . . . . . . 1 1 . . Protection 3 | . 1 . . 1 . . . . 1 Artifact . | . . . . . . . . . . Weapon 10 | 2 2 . 1 3 . 2 . . . Energy Gun 2 | . . . 1 1 . . . . . Energy Cannon 2 | . 2 . . . . . . . . Ballistic Gun 2 | 2 . . . . . . . . . Ballistic Cannon 2 | . . . . 2 . . . . . Launcher . | . . . . . . . . . . Special Weapon . | . . . . . . . . . . Impact Weapon . | . . . . . . . . . . Slashing Weapon . | . . . . . . . . . . Piercing Weapon . | . . . . . . . . . . Special Melee Weapon 2 | . . . . . . 2 . . . Unidentified Prototypes 1 | . . . . 1 . . . . . Parts Lost 11 | . . . 2 1 . 2 5 . 1 Power 1 | . . . 1 . . . . . . Propulsion 3 | . . . . . . . 3 . . Utility 6 | . . . . 1 . 2 2 . 1 Weapon 1 | . . . 1 . . . . . . Highest Loss Streak 4 | . . . 2 1 . 2 4 . 1 To Critical Strikes . | . . . . . . . . . . Average Backups 4 | . 4 5 5 4 5 4 5 5 5 Power . | . 1 1 . . 1 1 . . . Propulsion . | . . 2 1 1 1 . . . . Utility 1 | . . 2 3 3 2 1 1 1 1 Weapon . | . 1 . . . 1 1 . . . Tool/Special . | . . . . . . . . . . Unused Backups 14 | . 6 . 1 . . 3 . . 4 Power 1 | . . . . . . 1 . . . Propulsion 3 | . 1 . 1 . . 1 . . . Utility . | . . . . . . . . . . Weapon 6 | . 5 . . . . 1 . . . Tool/Special 4 | . . . . . . . . . 4 Average Slot Usage (%) 60 | . 93 100 59 26 15 37 57 46 44 Engine 5 | . 14 14 6 . . . . . . Leg 11 | . 28 28 13 . . . . . . Flight 1 | . . . . . . 2 10 . 2 Device 7 | . 7 14 8 8 . . 4 . . Storage 1 | . 5 . 4 . . . . . . Processor 9 | . . . 5 8 7 15 29 30 24 Hackware 1 | . . . . . . 5 4 7 7 Protection 5 | . 8 14 6 1 . . . . . Energy Gun 1 | . . . . 6 7 1 . . . Energy Cannon 9 | . 15 28 13 . . . . . . Ballistic Gun 2 | . 12 . . . . . . . . Special Melee Weapon 2 | . . . . . . 11 7 7 7 Peak Build Rating 32 | 6 10 10 14 14 8 25 32 23 31 Average Rating 12 | 5 8 10 8 8 6 19 24 23 21 On Entrance 10 | . 6 10 10 3 6 8 19 23 23 Avg Prop Armor Cover (%) . | . . . . . . . . . . Naked Turns 45 | . . . 45 . . . . . . Heaviest Build 21 | 13 15 15 21 13 3 3 3 1 9 Greatest Support 48 | 20 20 20 20 3 3 8 8 3 48 Greatest Overweight (x) 4 | . . . 1 4 . . . . 1 Average Overweight (x) . | . . . . . . . . . . Largest Inventory Capacity 8 | 8 8 5 8 5 5 5 5 5 5 Average Capacity 5 | 7 6 5 6 5 5 5 5 5 5 Most Carried 7 | 1 6 5 7 5 5 5 5 5 5 Average Carried 4 | . 4 5 5 4 4 4 4 5 5 Final Capacity 8 | 8 5 5 5 5 5 5 5 5 5 Final Carried 5 | 1 5 5 5 5 5 5 5 5 5 Class Distribution -------------------- 92% | Mutant 3% | Sprinter Dominant Class ---------------- Mutant | -10/Materials Mutant | -10/Mines Mutant | -9/Materials Mutant | -8/Materials Mutant | -7/Factory Mutant | -7/Lower Caves Derelict-Sprinter | -7/Lower Caves Mutant | -7/Data Miner Mutant | -6/Proximity Caves Resources | -11 -10 -10 -9 -8 -7 -7 -7 -7 -6 ----------- Run | Yrd Mat Min Mat Mat Fac Low Low Dat Pro Matter Collected 741 | 196 171 . 24 96 . 149 65 . 40 Remotely . | . . . . . . . . . . Salvage Created 749 | . 453 107 92 9 . 27 61 . . Parts 61 | . 33 11 9 . . 5 3 . . Haulers Intercepted . | . . . . . . . . . . Recyclers Shooed 3 | . 3 . . . . . . . . Parts Field Recycled . | . . . . . . . . . . Retrieved Matter . | . . . . . . . . . . Parts Self-Destructed 20 | . . . . . . 6 5 . 9 Prevented . | . . . . . . . . . . Parts Restored . | . . . . . . . . . . Kills | -11 -10 -10 -9 -8 -7 -7 -7 -7 -6 ------- Run | Yrd Mat Min Mat Mat Fac Low Low Dat Pro Combat Hostiles Destroyed 23 | . 8 6 4 1 . 2 2 . . Melee 1 | . . . . . . 1 . . . Guns 3 | . 3 . . . . . . . . Cannons 16 | . 5 6 4 1 . . . . . AOE 3 | . . . . . . 1 2 . . Classes Destroyed 5 | . 3 1 . 1 . . . . . Recycler 1 | . 1 . . . . . . . . Watcher 2 | . 2 . . . . . . . . Swarmer 12 | . . 6 3 . . 2 1 . . Grunt 10 | . 8 . 1 . . . 1 . . Hunter 1 | . . . . 1 . . . . . Best Kill Streak 4 | . 3 3 4 1 . 2 2 . . Combat Bots Only 4 | . 3 3 4 1 . 2 2 . . Max Kills in Single Turn 2 | . 1 2 1 1 . 2 1 . . Gunslinging . | . . . . . . . . . . Exploded 1 | . . . . . . 1 1 . . Melee 1 | . . . . . . 1 . . . Uniques/NPCs Destroyed . | . . . . . . . . . . Combat | -11 -10 -10 -9 -8 -7 -7 -7 -7 -6 -------- Run | Yrd Mat Min Mat Mat Fac Low Low Dat Pro Hostile Shots Fired 221 | . 23 12 81 14 8 19 41 . 23 Missed 91 | . 8 5 31 5 5 9 17 . 11 Hits 130 | . 15 7 50 9 3 10 24 . 12 Projectile 130 | . 15 7 50 9 3 10 24 . 12 Critical Strikes 5 | . 1 . 3 . . 1 . . . Damage Taken 1801 | . 183 58 523 141 49 251 401 . 195 Core 972 | . 25 9 179 48 33 216 283 . 179 Absorbed by Shields . | . . . . . . . . . . Core Remaining (%) 83 | 100 . 86 55 91 . . . . . Volleys Fired 46 | . 26 6 8 6 . . . . . Largest 2 | . 2 2 2 2 . . . . . Hottest 112 | . 112 112 112 74 . . . . . Shots Fired 86 | . 52 12 11 11 . . . . . Gun 25 | . 24 . . 1 . . . . . Cannon 61 | . 28 12 11 10 . . . . . Launcher . | . . . . . . . . . . Special . | . . . . . . . . . . Kinetic 34 | . 24 . . 10 . . . . . Thermal . | . . . . . . . . . . Explosive . | . . . . . . . . . . Electromagnetic 52 | . 28 12 11 1 . . . . . Robot Hit Streak 10 | . 5 3 10 7 . . . . . Robot Miss Streak 10 | . 2 2 1 10 . . . . . Penetration Max . | . . . . . . . . . . Secondary Targets 1 | . 1 . . . . . . . . Max Gunslinging Chain 1 | . 1 . . . . . . . . Shots Hit Robots 83 | . 30 5 10 9 . 19 9 . 1 Core Hits 47 | . 18 6 6 7 . 7 3 . . Critical Kills . | . . . . . . . . . . Critical Parts Destroyed . | . . . . . . . . . . Critical Strikes . | . . . . . . . . . . Melee Attacks 33 | . . . . . . 21 11 . 1 Impact . | . . . . . . . . . . Slashing . | . . . . . . . . . . Piercing 33 | . . . . . . 21 11 . 1 Sneak Attacks 1 | . . . . . . . 1 . . Combat Hostiles 1 | . . . . . . . 1 . . Follow-up Attacks . | . . . . . . . . . . Damage Inflicted 1167 | . 589 116 286 109 . 43 17 . 7 Guns 160 | . 160 . . . . . . . . Cannons 840 | . 403 116 212 109 . . . . . Explosions 90 | . 24 . 66 . . . . . . Melee 67 | . . . . . . 43 17 . 7 Ramming 10 | . 2 . 8 . . . . . . Kinetic 269 | . 160 . . 109 . . . . . Thermal 90 | . 24 . 66 . . . . . . Explosive . | . . . . . . . . . . Electromagnetic 731 | . 403 116 212 . . . . . . Impact . | . . . . . . . . . . Slashing . | . . . . . . . . . . Piercing 67 | . . . . . . 43 17 . 7 Highest Corruption . | . . . . . . . . . . Average Corruption . | . . . . . . . . . . Corruption Purged . | . . . . . . . . . . Corruption Blocked . | . . . . . . . . . . Overload Shots . | . . . . . . . . . . Overflow Damage 8 | . 8 . . . . . . . . Projectiles 8 | . 8 . . . . . . . . Explosions . | . . . . . . . . . . Melee . | . . . . . . . . . . Knockbacks 5 | . . . . 5 . . . . . Impact . | . . . . . . . . . . Kinetic 5 | . . . . 5 . . . . . Secondary . | . . . . . . . . . . Self-Inflicted Damage 4 | . . . 4 . . . . . . Shots . | . . . . . . . . . . Rammed 2 | . . . 2 . . . . . . Targets Rammed 4 | . 2 . 2 . . . . . . Kicked 2 | . 2 . . . . . . . . Crushed . | . . . . . . . . . . Highest Temperature 356 | . 198 198 . 17 . 356 14 . . Average Temperature 78 | . 67 80 . 10 . 173 9 . . Received Heat Transfer 419 | . 123 . 126 . 9 54 60 . 47 Siege Activations . | . . . . . . . . . . Martial Activations . | . . . . . . . . . . Shielding Activations . | . . . . . . . . . . Robots Disrupted . | . . . . . . . . . . Combat Hostiles . | . . . . . . . . . . Robots Corrupted . | . . . . . . . . . . Combat Hostiles . | . . . . . . . . . . Parts Fried 2 | . 2 . . . . . . . . Impact Corruptions . | . . . . . . . . . . Robots Melted . | . . . . . . . . . . Combat Hostiles . | . . . . . . . . . . Parts Melted . | . . . . . . . . . . Heat Transferred 200 | . 50 . 150 . . . . . . Parts Sabotaged . | . . . . . . . . . . Parts Stolen . | . . . . . . . . . . Parts Stripped . | . . . . . . . . . . Power Chain Reactions 2 | . 1 . 1 . . . . . . Alert | -11 -10 -10 -9 -8 -7 -7 -7 -7 -6 ------- Run | Yrd Mat Min Mat Mat Fac Low Low Dat Pro Maximum Alert Level . | . . . . . . . . . . Low Security (%) 100 | 100 100 100 100 100 100 . . . . Level 1 . | . . . . . . . . . . Level 2 . | . . . . . . . . . . Level 3 . | . . . . . . . . . . Level 4 . | . . . . . . . . . . Level 5 . | . . . . . . . . . . High Security . | . . . . . . . . . . Max Security . | . . . . . . . . . . Peak Influence 135 | . 135 77 99 33 45 . . . . Initial 33 | . . 21 24 33 9 . . . . Average 21 | . 49 12 46 6 9 . . . . Influence Increases 1076 | . 257 155 169 128 45 175 132 . 15 Destroy 0b10 Robot/C 480 | . 160 120 80 20 . 40 60 . . Destroy 0b10 Robot/NC 15 | . 15 . . . . . . . . Destroy Leader 94 | . 44 20 10 10 . . 10 . . Allied During Kill 2 | . . . . . . . 2 . . Successful Hack 24 | . 16 . . 8 . . . . . Disable Machine 30 | . 15 15 . . . . . . . Destroy Structure 11 | . 7 . 4 . . . . . . Partial Spotted 15 | . . . . 15 . . . . . Lose Combat Pursuer 405 | . . . 75 75 45 135 60 . 15 Influence Decreases 1076 | . 203 145 154 186 21 182 118 52 15 Entered New Map 209 | . . 33 40 46 12 18 8 52 . Time Decay 812 | . 203 112 94 140 9 159 80 . 15 Lost Part 55 | . . . 20 . . 5 30 . . Squads Dispatched 4 | . 3 . . 1 . . . . . Investigation 1 | . 1 . . . . . . . . Extermination . | . . . . . . . . . . Reinforcement 3 | . 2 . . 1 . . . . . Assault . | . . . . . . . . . . Garrison . | . . . . . . . . . . Intercept . | . . . . . . . . . . Searches Triggered . | . . . . . . . . . . Construction Impeded . | . . . . . . . . . . Haulers Reinforced . | . . . . . . . . . . Active Scanning Responses . | . . . . . . . . . . Cargo Convoy Interrupts . | . . . . . . . . . . Stealth | -11 -10 -10 -9 -8 -7 -7 -7 -7 -6 --------- Run | Yrd Mat Min Mat Mat Fac Low Low Dat Pro Distress Signals 3 | . . . 1 1 . . . . 1 Communications Jammed . | . . . . . . . . . . Distress Signals . | . . . . . . . . . . Times Spotted 108 | . 26 6 14 7 6 23 14 . 12 Peak Tracking Total 8 | . 5 3 6 4 8 4 8 . 6 Tactical Retreats 20 | . . . 3 3 1 6 2 . 5 Traps | -11 -10 -10 -9 -8 -7 -7 -7 -7 -6 ------- Run | Yrd Mat Min Mat Mat Fac Low Low Dat Pro Traps Triggered 1 | . 1 . . . . . . . . Indirectly . | . . . . . . . . . . Trap Hack Attempts . | . . . . . . . . . . Triggered . | . . . . . . . . . . Disarmed . | . . . . . . . . . . Reprogrammed . | . . . . . . . . . . Reused . | . . . . . . . . . . Traps Extracted . | . . . . . . . . . . Installed . | . . . . . . . . . . Triggered . | . . . . . . . . . . Machines | -11 -10 -10 -9 -8 -7 -7 -7 -7 -6 ---------- Run | Yrd Mat Min Mat Mat Fac Low Low Dat Pro Machines Disabled 2 | . 1 1 . . . . . . . Max in Single Turn 1 | . 1 1 . . . . . . . Machines Repaired . | . . . . . . . . . . Machines Dismantled . | . . . . . . . . . . Machines Sabotaged . | . . . . . . . . . . Overloaded Fab Kills . | . . . . . . . . . . Hacking | -11 -10 -10 -9 -8 -7 -7 -7 -7 -6 --------- Run | Yrd Mat Min Mat Mat Fac Low Low Dat Pro Machines Accessed 15 | . 5 . . 2 . 2 2 4 . Terminals 7 | . 4 . . 2 . . 1 . . Fabricators . | . . . . . . . . . . Repair Stations 1 | . 1 . . . . . . . . Recycling Units . | . . . . . . . . . . Scanalyzers . | . . . . . . . . . . Garrison Access . | . . . . . . . . . . Total Hacks 42 | . 12 . . 2 . 2 2 24 . Successful 34 | . 5 . . 1 . 2 2 24 . Failed 8 | . 7 . . 1 . . . . . Catastrophic 1 | . . . . 1 . . . . . Database Lockouts . | . . . . . . . . . . Manual 10 | . 8 . . 2 . . . . . Terminals 13 | . 10 . . 2 . . 1 . . Fabricators . | . . . . . . . . . . Repair Stations 2 | . 2 . . . . . . . . Recycling Units . | . . . . . . . . . . Scanalyzers . | . . . . . . . . . . Garrison Access . | . . . . . . . . . . Terminal Hacks 31 | . 2 . . 1 . 2 2 24 . Record 7 | . . . . . . . 1 6 . Part Schematic 11 | . . . . . . . . 11 . Robot Schematic 4 | . . . . . . . . 4 . Prototype ID Bank 4 | . 1 . . . . . . 3 . Open Door 3 | . . . . . . 2 1 . . Branch Access Points 1 | . 1 . . . . . . . . Security Status 1 | . . . . 1 . . . . . Fabricator Hacks . | . . . . . . . . . . Repair Station Hacks 1 | . 1 . . . . . . . . Refit 1 | . 1 . . . . . . . . Recycling Unit Hacks . | . . . . . . . . . . Scanalyzer . | . . . . . . . . . . Garrison Access Hacks . | . . . . . . . . . . Unauthorized Hacks 2 | . 2 . . . . . . . . Terminals 2 | . 2 . . . . . . . . Assimilate 1 | . 1 . . . . . . . . Botnet 1 | . 1 . . . . . . . . Fabricators . | . . . . . . . . . . Repair Stations . | . . . . . . . . . . Recycling Units . | . . . . . . . . . . Scanalyzers . | . . . . . . . . . . Garrison Access . | . . . . . . . . . . Data Cores Recovered . | . . . . . . . . . . Used . | . . . . . . . . . . Hacking Detections 6 | . 5 . . 1 . . . . . Full Trace Events . | . . . . . . . . . . Feedback Events . | . . . . . . . . . . Feedback Blocked . | . . . . . . . . . . Robot Schematics Acquired 4 | . . . . . . . . 4 . Robots Built . | . . . . . . . . . . Authchips . | . . . . . . . . . . Time . | . . . . . . . . . . Total Robot Build Rating . | . . . . . . . . . . Part Schematics Acquired 11 | . . . . . . . . 11 . Parts Built . | . . . . . . . . . . Authchips . | . . . . . . . . . . Time . | . . . . . . . . . . Total Part Build Rating . | . . . . . . . . . . Part Studies Acquired . | . . . . . . . . . . Parts Repaired . | . . . . . . . . . . Time . | . . . . . . . . . . Parts Recycled . | . . . . . . . . . . Recycled Matter . | . . . . . . . . . . Retrieved Matter . | . . . . . . . . . . Retrieved Components . | . . . . . . . . . . Parts Scanalyzed . | . . . . . . . . . . Part Schematics Acquired . | . . . . . . . . . . Parts Damaged . | . . . . . . . . . . Bothacking | -11 -10 -10 -9 -8 -7 -7 -7 -7 -6 ------------ Run | Yrd Mat Min Mat Mat Fac Low Low Dat Pro Used RIF Installer . | . . . . . . . . . . Robots Hacked . | . . . . . . . . . . Non-combat . | . . . . . . . . . . Combat . | . . . . . . . . . . Robot Hacks Applied . | . . . . . . . . . . Relay Couplers Released . | . . . . . . . . . . Fabnet Peak Effective % . | . . . . . . . . . . Robots Rewired . | . . . . . . . . . . Allies Hacked . | . . . . . . . . . . Hacks Repelled . | . . . . . . . . . . Allies | -11 -10 -10 -9 -8 -7 -7 -7 -7 -6 -------- Run | Yrd Mat Min Mat Mat Fac Low Low Dat Pro Total Allies 7 | . 1 . . . . 2 3 . 1 Largest Group 2 | . 1 . . . . 1 2 . 1 Highest-Rated Group 252 | . 10 . . . . 16 252 . 96 Highest-Rated Ally 167 | . 10 . . . . 16 167 . 96 Total Orders . | . . . . . . . . . . Ally Attacks 10 | . . . . . . 3 3 . 4 Total Damage 197 | . . . . . . 31 73 . 93 Kills 2 | . . . . . . . 1 . 1 Allies Corrupted . | . . . . . . . . . . Allies Melted . | . . . . . . . . . . Intel | -11 -10 -10 -9 -8 -7 -7 -7 -7 -6 ------- Run | Yrd Mat Min Mat Mat Fac Low Low Dat Pro Active Infowar (turns) 926 | . . . . 894 . . 32 . . Sensors 894 | . . . . 894 . . . . . ECM 32 | . . . . . . . 32 . . Robot Analysis Total . | . . . . . . . . . . Derelict Logs Recovered 5 | . . 2 . . . . 2 . 1 Drone Launches . | . . . . . . . . . . Drone Recoveries . | . . . . . . . . . . Exploration | -11 -10 -10 -9 -8 -7 -7 -7 -7 -6 ------------- Run | Yrd Mat Min Mat Mat Fac Low Low Dat Pro Turns Passed 4067 | 75 715 853 221 1033 36 470 301 40 323 Spaces Moved 3613 | 58 458 534 212 453 67 553 557 80 641 Core 1605 | 5 . . 153 453 67 400 106 80 341 Treads 6 | . . . . . . . . . 6 Legs 1104 | 53 458 534 59 . . . . . . Wheels . | . . . . . . . . . . Hover . | . . . . . . . . . . Flight 898 | . . . . . . 153 451 . 294 Fastest Speed 32 | 50 120 120 50 50 50 32 32 50 35 Average Speed 70 | 113 120 120 82 68 50 45 35 50 44 Slowest Speed 250 | 120 120 120 190 250 50 50 50 50 165 Overloaded Moves . | . . . . . . . . . . Propulsion Burnouts . | . . . . . . . . . . Robots Hopped . | . . . . . . . . . . Potential Cave-ins . | . . . . . . . . . . Cave-ins Triggered . | . . . . . . . . . . Exploration Rate (%) 48 | 3 63 85 24 35 2 63 81 69 58 Regions Visited 9 Branch Regions 5 Pre-discovered Areas 1 | . . 1 . . . . . . . Known Exits Taken 4 | . 1 . . . . 1 1 1 . Unknown Exits Taken 5 | 1 . 1 1 1 1 . . . . Scrap Searched 7 | . . 1 . . . 2 2 . 2 Spaces Dug . | . . . . . . . . . . Terrain Destroyed 9 | . 6 . 3 . . . . . . Melee . | . . . . . . . . . . Projectile . | . . . . . . . . . . AOE 9 | . 6 . 3 . . . . . . Terrain Rammed . | . . . . . . . . . . Walls Destroyed . | . . . . . . . . . . Machines Disabled . | . . . . . . . . . . Actions | -11 -10 -10 -9 -8 -7 -7 -7 -7 -6 --------- Run | Yrd Mat Min Mat Mat Fac Low Low Dat Pro Total 5061 | 64 578 734 246 1167 68 783 662 79 680 Wait 1259 | . 64 195 15 686 . 190 81 . 28 Move 3604 | 57 457 533 211 452 66 552 556 79 641 Hop . | . . . . . . . . . . Pick Up 24 | 1 10 . 2 2 1 6 1 . 1 Fast Attach 36 | 6 4 . 3 4 . 7 8 . 4 Attach 10 | . . . 3 6 1 . . . . Detach 12 | . 1 . 2 7 . . 2 . . Swap 2 | . 2 . . . . . . . . Drop 31 | . 12 . . 4 . 7 3 . 5 Fire 46 | . 26 6 8 6 . . . . . Melee 33 | . . . . . . 21 11 . 1 Ram 2 | . . . 2 . . . . . . Kick 2 | . 2 . . . . . . . . Crush . | . . . . . . . . . . Escape Stasis . | . . . . . . . . . . Rewire . | . . . . . . . . . . Trap . | . . . . . . . . . . Miscellaneous . | . . . . . . . . . . Route ------- -11/Scrapyard -10/Materials (discovered 2 exits: [*Mat] / *Min) -10/Mines (discovered 2 exits: [*Mat x2]) -9/Materials -8/Materials -7/Factory -7/Lower Caves -7/Lower Caves (discovered 2 exits: *Fac / *Dat) -7/Data Miner -6/Proximity Caves History --------- Turn | Location | Event 3 | -11/Scrapyard | Discovered new exit (range 15) 76 | -11/Scrapyard | Entered Materials 206 | -10/Materials | Discovered new exit (range 12) 305 | -10/Materials | Build established: Mutant 484 | -10/Materials | Discovered new exit (range 15) 733 | -10/Materials | Identified exit to Mines 791 | -10/Materials | Entered Mines 834 | -10/Mines | Learned Materials terminal intel 977 | -10/Mines | Learned location of Storage (-7) 1223 | -10/Mines | Discovered new exit (range 6) 1280 | -10/Mines | Discovered new exit (range 5) 1644 | -10/Mines | Entered Materials 1644 | -9/Materials | Evolved 2 slots: Utility x2 1645 | -9/Materials | Loaded intel: 12 terminal locations 1777 | -9/Materials | Released all parts (8) 1861 | -9/Materials | Discovered new exit (range 7) 1865 | -9/Materials | Entered another Materials area 1865 | -8/Materials | Evolved 2 slots: Propulsion x1, Utility x1 2881 | -8/Materials | Discovered new exit (range 13) 2898 | -8/Materials | Entered Factory 2898 | -7/Factory | Evolved 2 slots: Utility x2 2927 | -7/Factory | Discovered new exit (range 4) 2934 | -7/Factory | Entered Lower Caves 2974 | -7/Lower Caves | Spotted B-75 Beast 3399 | -7/Lower Caves | Discovered new exit (range 14) 3403 | -7/Lower Caves | Identified exit to Lower Caves 3404 | -7/Lower Caves | Entered another Lower Caves area 3431 | -7/Lower Caves | Discovered new exit (range 13) 3444 | -7/Lower Caves | Identified exit to Factory 3536 | -7/Lower Caves | Learned 4 Factory zone layouts 3556 | -7/Lower Caves | Spotted B-75 Beast 3567 | -7/Lower Caves | Learned Factory emergency access door positions 3629 | -7/Lower Caves | Attracted the attention of an 0b10 checkpoint 3630 | -7/Lower Caves | Core integrity fell below 50% 3683 | -7/Lower Caves | Lost 4 parts (3n1u) 3689 | -7/Lower Caves | Discovered new exit (range 10) 3693 | -7/Lower Caves | Identified exit to Data Miner 3705 | -7/Lower Caves | Entered Data Miner 3705 | -7/Data Miner | Discovered new exit (range 6) 3708 | -7/Data Miner | Identified exit to Proximity Caves 3715 | -7/Data Miner | Met Data Miner 3725 | -7/Data Miner | Acquired the access code to Warlord's prototype stash 3734 | -7/Data Miner | Received God Mode back door access code from Data Miner 3745 | -7/Data Miner | Entered Proximity Caves 3756 | -6/Proximity Caves | Learned location of 1 exit from Factory 3768 | -6/Proximity Caves | Escorted by Enhanced Grunt 3806 | -6/Proximity Caves | Core integrity fell below 20% 3808 | -6/Proximity Caves | Attacked by a faux Warlord 3845 | -6/Proximity Caves | Spotter reported a threat 3927 | -6/Proximity Caves | Spotter reported a threat 3936 | -6/Proximity Caves | Attracted the attention of an 0b10 checkpoint 4029 | -6/Proximity Caves | Spotter reported a threat 4068 | -6/Proximity Caves | Destroyed by P-60 Hacker with Shock Rifle Last Messages --------------- 03927_ ALERT: Unidentified potential threat approaching Complex 0b10. 03936_ Y-54 Guardian: "INTERCEPTING UNREGISTERED DERELICT." 03938_ Y-54 Guardian destroyed. 03993_ Acquired 10 matter. 04013_ Searching scrap... 04013_ Found Mak. Power Source. 04013_ Found Hcp. Storage Unit. 04013_ Found 53 Matter. 04026_ Acquired Lyr. Medium Armor Plating. 04029_ ALERT: Unidentified potential threat approaching Complex 0b10. 04030_ Acquired Med. Treads. 04031_ Dropped Cesium-ion Thruster. 04032_ Acquired 20 matter. 04035_ Acquired Arm. Treads. 04038_ Acquired 10 matter. 04043_ Dropped Lyr. Medium Armor Plating. 04044_ Dropped Arm. Treads. 04044_ Dropped Med. Treads. 04067_ Dropped Hrd. Medium Armor Plating. 04067_ Acquired Ripper. Map ----- +----------------------------------------------------+ | ?????????????????????????????????????????????????? | | ???????????????????????????????????##"#######????? | | ##?????????????#####???????????##### ## ###### | | ###?????????### ##?????????## # | | #?????????# ##???????## # | | #?????????# ##??????# ### ## # | | ##?????????# #??????# #### #### | | ##?????????## #??????# ##?# #### | | ##?????????# ##??????##???# | | ! ##????????# ##????????????##### | | ## #??#####?# ##??####???????##?### ##### | | ?## #??# #### #??# #?????# ###?###???## | | ??# ##?# ### ##??# ##### #??###???# | | ??# ### ## ##???# #??# ##??# | | ?## ## ##?##?????# #???# ##?## | | ## ###" #?## ???### ####??## ##### | | ##?## #?# #### ####### ## | | #?### ##?# | | ### ##??# ## | | # ## ###?## #### ## # | | # ## #??## ## ##!%# | | # ## #???## ## ##* # | | ### ##????#% =*### #### ### # | | #?# #?????# [*##### ###?# #?# | | ##?# #????##%%## #?# #?# | | # #### *%##??## !@## ##### #?# ?# | | ## ## #?## !## ###/# ## #? ? | | ## ]%### ## #] !# #?# # | | # =!## ## # ## #?## ### ## | | # ### =!%! #?# # #??? #?####? | | #####?#### # |= #### # ## #??# #?????? | | ?????????# #### %= ##? # #??? #?????? | | ##??????## #?## [ ##### #### #?????? | | # ####### ### ####### #?????? | | ## p #?????## ############?????? | | #??????#####????????????##### | | ###### ### #??????????????????????# | | ?????## ####?# #??????????????????????## | | ??????####????### ##???????????????????????#### | | ????????????????######???????????????????????????? | | ?????????????????????????????????????????????????? | | ?????????????????????????????????????????????????? | | ?????????????????????????????????????????????????? | | ?????????????????????????????????????????????????? | | ?????????????????????????????????????????????????? | | ?????????????????????????????????????????????????? | | ?????????????????????????????????????????????????? | | ?????????????????????????????????????????????????? | | ?????????????????????????????????????????????????? | | ?????????????????????????????????????????????????? | +----------------------------------------------------+ Best States ------------- Heat Dissipation 50 Coolant Potential 50 Energy Generation 10 Energy Capacity 250 Matter Stores 300 Matter Capacity 300 Sight Range 16 Robot Scan Range 15 Terrain Scan Density 10 ECM Strength 1 Armor Coverage 225 Evasion (%) 63 Targeting Accuracy 12 Recoil Reduction 2 Salvage Targeting 12 Offensive Hacking 11 Defensive Hacking 11 Item Schematics ----------------- Combat Drone Bay | -7/Data Miner | Free Lgt. Regenerative Plating | -7/Data Miner | Free Cld. Aerolev Unit | -7/Data Miner | Free Gravity Neutralizer | -7/Data Miner | Free Cld. Plasma Cannon | -7/Data Miner | Free Field Propulsion Drive | -7/Data Miner | Free Adv. Hacking Suite | -7/Data Miner | Free Imp. Plasma Cutter | -7/Data Miner | Free Thermic Laser | -7/Data Miner | Free Adv. Recoil Stabilizer | -7/Data Miner | Free Adv. Target Analyzer | -7/Data Miner | Free Robot Schematics ------------------ H-55 Commando | -7/Data Miner | Free E-15 Imp | -7/Data Miner | Free M-22 Extractor | -7/Data Miner | Free G-47 Trooper | -7/Data Miner | Free Fabricated ------------ Nothing Repaired ---------- Nothing Studied --------- None Alien Tech Used ----------------- None Achievements -------------- Error 47 Factory Defaults Look Less Dangerous Next Time Satisfying Challenges ------------ None Game ------ Seed TerrorSubatomicBoomstick Manual? 0 Play Time 00:45:31 Cumulative 51.8 hours Start 2026.02.13 @ 20:36:35 End 2026.02.13 @ 21:27:25 Sessions 1 Manual Loads 0 Difficulty Rogue Special Mode None Game No. 57 Rogue 32 Adventurer 18 Explorer 7 Win Type - Total 1 Types 1/0/0/0/0/0/0/0/0/0 Lore% 19 Gallery% 27 Achievement% 26 Wizard Run 0 Options --------- Layout 0 ASCII 0 Keyboard 1 Movement Numpad Keybinds 0 Fullscreen 2 Font 24/Crisp Map View 113x50 Zoom Use 17% Tactical HUD 1 Map Filters NONE Filters NONE Steam 1 RUN: 15701050-c79c-4388-9d28-6a77ec106e21